bitfinex-derivatives/quotes_ETHF0:USTF0_20251210
["timestamp","ask_amount","ask_price","bid_price","bid_amount"]
[1765390888819,3.2078,3361.8,3361.7,4.0903]
[1765390889421,3.2078,3361.8,3361.4,3.35654]
[1765390889422,3.2078,3361.8,3361.4,0.14874]
[1765390890818,0.9141968,3361.7,3361.2,0.8086]
[1765390891015,0.9141968,3361.6,3361.2,0.8086]
[1765390891219,3.2078,3361.3,3361.2,0.8086]
[1765390891420,4.1219968,3361.3,3361.2,0.8086]
[1765390892623,4.1219968,3361.3,3361.2,4.8989]
[1765390892823,4.1219968,3361.3,3361.2,0.8086]
[1765390893721,0.00332205,3362.1,3361.2,0.8086]
[1765390893722,0.00332205,3362.1,3361.7,4.0903]
[1765390893919,0.00332205,3362.1,3362.0,4.21593161]
[1765390894224,0.00332205,3362.1,3362.0,7.2981]
[1765390894929,0.00332205,3362.1,3362.0,4.0903]
[1765390895127,0.00332205,3362.1,3361.9,0.14872]
[1765390895720,0.00332205,3362.1,3361.8,1.191]
[1765390896720,0.00332205,3362.1,3362.0,7.2981]
[1765390897626,0.00332205,3362.1,3361.9,0.14872]
[1765390898023,0.00332205,3362.1,3362.0,4.0903]
[1765390899429,0.00332205,3362.1,3362.0,7.2981]
[1765390899731,0.00332205,3362.1,3362.0,5.17]
[1765390900231,0.00332205,3362.1,3362.0,7.2981]
[1765390900833,0.00446017,3362.2,3362.0,7.2981]
[1765390901129,1.26374018,3362.7,3362.6,1.9622]
[1765390901523,1.26374018,3362.7,3362.4,1.3397]
[1765390901725,1.26374018,3362.7,3362.4,1.191]
[1765390901920,1.26625787,3362.7,3362.4,1.191]
[1765390902130,3.2078,3362.5,3362.4,1.191]
[1765390905728,4.16095836,3362.5,3362.4,1.191]
[1765390908931,4.16095836,3362.5,3362.4,3.1532]
[1765390909131,4.16095836,3362.5,3362.4,1.191]
[1765390911438,0.95315836,3362.5,3362.4,5.2813]
[1765390911731,0.95424565,3362.6,3362.5,4.0903]
[1765390912534,1.26625787,3362.7,3362.6,4.0903]
[1765390912841,2.22076608,3362.7,3362.6,4.0903]
[1765390914036,0.9570259,3362.7,3362.6,4.0903]
[1765390914234,0.00251769,3362.7,3362.6,4.0903]
[1765390914941,0.00251769,3362.7,3362.6,12.6043]
[1765390915136,3.2078,3363.3,3363.2,1.9622]
[1765390915440,4.16215061,3363.3,3363.2,4.0903]
[1765390916135,4.16569952,3363.3,3363.2,0.00335937]
[1765390917334,10.16569952,3363.3,3362.1,0.14871]
[1765390917535,3.2078,3362.8,3362.1,0.14871]
[1765390918543,3.2078,3362.8,3362.4,1.19327935]
[1765390920043,44.0078,3362.8,3362.4,1.19327935]
[1765390920643,3.2078,3362.8,3362.4,1.19327935]
[1765390921140,1.59717842,3362.6,3362.4,0.00227935]
[1765390922044,1.59717842,3362.6,3362.5,1.2207]
[1765390922441,6.14869,3362.6,3361.5,4.3988]
[1765390922635,1.59892382,3362.0,3361.5,4.3988]
[1765390923240,1.59892382,3361.9,3361.5,4.3988]
[1765390923544,1.59892382,3361.9,3361.8,1.19399589]
[1765390924045,3.0784866,3362.2,3362.1,4.0866]
[1765390924236,3.2078,3362.6,3362.5,5.3073]
[1765390925044,3.2078,3363.0,3362.5,5.3073]
[1765390925251,3.2078,3363.0,3362.9,4.0866]
[1765390925943,3.2078,3363.0,3362.5,1.2207]
[1765390926940,4.80672382,3363.0,3362.5,1.2207]
[1765390927339,0.96838092,3362.9,3362.5,1.2207]
[1765390927547,0.96838092,3362.8,3362.5,1.2207]
[1765390927850,0.96838092,3362.7,3362.5,1.2207]
[1765390928048,0.96838092,3362.6,3362.5,1.2207]
[1765390928743,0.96838092,3362.6,3362.5,5.3073]
[1765390930346,0.00354891,3363.3,3363.0,1.1794]
[1765390930548,0.96684153,3363.2,3363.0,1.1794]
[1765390930746,0.96684153,3363.1,3363.0,1.1794]
[1765390931548,0.96684153,3363.1,3363.0,1.04562643]
[1765390932448,0.96684153,3363.1,3363.0,3.15532643]
[1765390932643,0.96684153,3363.1,3363.0,5.22092643]
[1765390933348,0.96684153,3363.1,3363.0,1.04562643]
[1765390933845,0.96684153,3363.1,3363.0,5.22092643]
[1765390934038,0.96684153,3363.1,3363.0,8.42872643]
[1765390934445,0.96684153,3363.1,3363.0,5.22092643]
[1765390934749,0.00354891,3363.3,3363.2,4.1753]
[1765390934942,0.97067649,3363.3,3363.2,4.1753]
[1765390937246,4.17847649,3363.3,3363.0,1.04562643]
[1765390937451,0.96712758,3363.2,3363.0,1.04562643]
[1765390937653,0.96712758,3363.1,3363.0,1.04562643]
[1765390938056,8.56357595,3363.1,3362.5,1.2207]
[1765390938252,3.2078,3362.6,3362.5,1.2207]
[1765390938552,4.17492758,3362.6,3362.5,1.2207]
[1765390938748,44.97492758,3362.6,3362.5,1.2207]
[1765390939149,4.17492758,3362.6,3362.5,1.2207]
[1765390939552,44.97492758,3362.6,3362.5,1.2207]
[1765390940158,44.97492758,3362.6,3361.8,1.19399589]
[1765390940159,50.97492758,3362.6,3361.8,1.19399589]
[1765390940354,3.2078,3361.9,3361.8,1.19399589]
[1765390940559,0.96712758,3361.9,3361.8,1.19399589]
[1765390940953,0.96712758,3361.9,3361.8,5.36929589]
[1765390941153,3.2078,3362.3,3361.8,3.30369589]
[1765390941154,0.96712758,3362.2,3361.8,3.30369589]
[1765390941353,0.96712758,3362.1,3361.8,1.19399589]
[1765390941555,0.96712758,3362.0,3361.8,1.19399589]
[1765390941759,0.96712758,3361.9,3361.8,1.19399589]
[1765390941954,4.17492758,3361.9,3361.8,1.19399589]
[1765390942661,4.17492758,3361.9,3361.8,3.30369589]
[1765390943964,4.17492758,3361.9,3361.8,1.19399589]
[1765390946668,5.77108082,3361.9,3361.8,0.00299589]
[1765390946870,6.61386533,3361.9,3361.0,1.1794]
[1765390947062,0.96712758,3361.8,3361.0,1.1794]
[1765390947372,0.96712758,3361.7,3361.5,0.00446017]
[1765390947569,0.96712758,3361.6,3361.5,0.00446017]
[1765390947870,41.76712758,3361.6,3361.5,0.00704747]
[1765390948263,43.3586831,3361.6,3361.5,0.00704747]
[1765390948468,41.76712758,3361.6,3361.5,0.00704747]
[1765390949268,43.35735189,3361.6,3361.5,0.00704747]
[1765390949469,49.35735189,3361.6,3361.5,0.00704747]
[1765390949666,49.35735189,3361.6,3361.5,4.747e-05]
[1765390949870,47.91586758,3361.6,3361.5,4.747e-05]
[1765390950067,41.76712758,3361.6,3361.5,1.07894747]
[1765390950676,0.96712758,3361.6,3361.5,4.87274747]
[1765390950877,0.96712758,3361.8,3361.5,4.87274747]
[1765390951072,0.96712758,3361.7,3361.5,2.89124747]
[1765390951278,0.96712758,3361.6,3361.5,2.89124747]
[1765390951571,0.96712758,3361.8,3361.5,4.87274747]
[1765390951779,44.01226017,3361.9,3361.6,3.7938]
[1765390951780,0.96712758,3361.7,3361.6,3.7938]
[1765390951974,3.21226017,3361.9,3361.8,3.7938]
[1765390952273,4.18964432,3361.9,3361.8,3.7938]
[1765390953183,4.18964432,3361.9,3361.8,1.8123]
[1765390953471,4.18964432,3361.9,3361.5,1.07894747]
[1765390953676,0.97738415,3361.8,3361.5,1.07894747]
[1765390954978,0.97738415,3361.8,3361.7,1.8123]
[1765390955178,0.97738415,3361.8,3361.5,1.07894747]
[1765390956877,0.97738415,3361.8,3361.7,3.7938]
[1765390957079,0.97738415,3361.8,3361.5,2.89124747]
[1765390957378,0.97738415,3361.8,3361.5,1.07894747]
[1765390957780,0.97738415,3361.8,3361.7,3.7938]
[1765390958284,3.21226017,3361.9,3361.8,3.7938]
[1765390958475,0.00446017,3361.9,3361.8,3.94253]
[1765390958674,3.2078,3362.3,3362.2,3.7938]
[1765390958978,3.2078,3362.3,3362.2,1.8123]
[1765390958979,4.18548376,3362.3,3362.2,1.8123]
[1765390959375,4.18548376,3362.3,3362.0,1.0789]
[1765390959574,0.97768376,3362.2,3362.0,1.0789]
[1765390959773,0.97768376,3362.2,3362.1,3.7938]
[1765390960776,0.97768376,3362.2,3362.0,1.0789]
[1765390960971,0.97768376,3362.2,3362.1,1.8123]
[1765390961577,0.97768376,3362.2,3362.1,3.7938]
[1765390966273,0.97768376,3362.2,3362.0,1.0789]
[1765390966479,0.97768376,3362.1,3362.0,1.0789]
[1765390966887,0.97768376,3362.1,3362.0,4.8727]
[1765390967384,0.97768376,3362.1,3362.0,1.0789]
[1765390969875,0.97768376,3362.1,3362.0,4.8727]
[1765390970780,0.97768376,3362.1,3362.0,1.0789]
[1765390973481,0.97768376,3362.1,3362.0,2.8912]
[1765390973685,0.97768376,3362.1,3362.0,1.0789]
[1765390974389,41.77768376,3362.1,3362.0,1.0789]
[1765390974687,41.77768376,3362.1,3362.0,4.8727]
[1765390975781,41.77768376,3362.1,3362.0,1.0789]
[1765390976188,2.5724076,3362.1,3362.0,4.8727]
[1765390976387,2.5724076,3362.1,3362.0,2.8912]
[1765390976886,2.5724076,3362.1,3362.0,4.8727]
[1765390977189,2.5724076,3362.1,3362.0,1.0789]
[1765390978186,0.97768376,3362.1,3362.0,1.0789]
[1765390978990,2.57326723,3362.1,3362.0,4.6008]
[1765390979190,0.97768376,3362.1,3362.0,4.6008]
[1765390981691,0.00446017,3362.5,3362.4,3.4223]
[1765390982390,0.00446017,3362.5,3362.0,1.0789]
[1765390982591,3.2078,3362.4,3362.0,1.0789]
[1765390982785,1.59706447,3362.3,3362.2,3.4223]
[1765390983889,1.60152464,3362.5,3362.3,3.4223]
[1765390984197,1.765,3363.0,3362.9,1.7127]
[1765390984590,1.765,3363.0,3362.9,3.4223]
[1765390984591,0.8825,3363.0,3362.9,3.4223]
[1765390985690,2.13990751,3363.3,3362.9,3.4223]
[1765390985886,1.41630908,3363.3,3363.2,3.4223]
[1765390986092,2.9076,3363.1,3363.0,0.9779]
[1765390986491,1.4538,3362.6,3362.5,4.4002]
[1765390986796,2.13990751,3363.3,3362.5,4.4002]
[1765390986995,1.4538,3362.6,3362.5,4.4002]
[1765390987496,2.13189843,3363.2,3362.5,4.4002]
[1765390988994,3.2078,3363.1,3362.5,4.4002]
[1765390989197,4.6071,3363.1,3363.0,3.15]
[1765390989599,3.2078,3363.1,3363.0,5.1271]
[1765390990697,5.9866,3363.1,3363.0,1.1885]
[1765390990901,1.3795,3362.6,3362.5,4.9165]
[1765390992102,3.2078,3363.1,3362.5,4.9165]
[1765390992293,3.2078,3363.1,3363.0,1.1885]
[1765390992294,5.8878,3363.1,3363.0,1.1885]
[1765390993499,3.2078,3363.1,3363.0,5.1271]
[1765390993695,4.163464,3363.1,3363.0,5.1271]
[1765390993894,5.483764,3363.1,3363.0,5.1271]
[1765390994295,4.163464,3363.1,3363.0,5.1271]
[1765390995201,0.955664,3363.1,3363.0,5.1271]
[1765390995999,5.48831843,3364.3,3364.0,5.1271]
[1765390996196,3.6808,3364.1,3364.0,1.1885]
[1765390996505,3.6808,3363.6,3363.5,3.15]
[1765390996799,1.795,3363.6,3363.5,5.1271]
[1765390996999,0.00265589,3363.6,3363.5,5.13052777]
[1765390997302,1.79765589,3363.6,3363.5,5.13052777]
[1765390997897,0.00265589,3363.6,3363.5,5.13052777]
[1765391003100,1.79765589,3363.6,3363.5,5.13052777]
[1765391003499,0.00265589,3363.6,3363.5,5.13052777]
[1765391004806,0.00446017,3363.9,3363.5,5.27917777]
[1765391005008,0.00446017,3363.9,3363.8,7.1464]
[1765391005912,0.00785769,3363.9,3363.8,7.1464]
[1765391008007,1.04773679,3363.9,3363.8,7.1464]
[1765391009609,4.75443679,3363.9,3363.8,1.9615]
[1765391009914,4.75443679,3363.9,3363.5,4.78632777]
[1765391009915,3.7067,3363.6,3363.5,4.78632777]
[1765391010112,4.7465791,3363.6,3363.5,4.78632777]
[1765391010309,4.7465791,3363.6,3363.5,1.19192777]
[1765391010707,4.7465791,3363.6,3363.5,0.00342777]
[1765391012512,6.87847753,3363.6,3363.5,0.00342777]
[1765391012912,3.17177753,3363.6,3363.5,4.73632777]
[1765391013106,1.0398791,3363.6,3363.5,4.73632777]
[1765391013304,4.7465791,3363.6,3363.5,4.73632777]
[1765391013507,4.7465791,3363.6,3363.5,1.14192777]
[1765391013700,1.0398791,3363.6,3363.5,4.73632777]
[1765391015516,2.8493791,3363.6,3363.5,4.73632777]
[1765391016106,4.7465791,3363.6,3363.5,4.73632777]
[1765391016810,7.00271745,3363.6,3363.5,0.00342777]
[1765391017007,3.7067,3363.1,3363.0,3.2078]
[1765391017209,4.7465791,3363.1,3363.0,3.2078]
[1765391017412,4.7465791,3363.1,3363.0,4.3463]
[1765391017613,4.7465791,3363.1,3363.0,2.9025]
[1765391017614,45.5465791,3363.1,3363.0,2.9025]
[1765391018009,45.5465791,3363.1,3363.0,1.14104172]
[1765391018215,45.5465791,3363.1,3363.0,0.00254172]
[1765391018410,3.7067,3362.8,3362.7,0.00446017]
[1765391018616,4.7465791,3362.8,3362.7,0.00446017]
[1765391019017,7.9543791,3362.8,3362.7,0.00446017]
[1765391019211,1.0398791,3362.8,3362.7,3.59886017]
[1765391019411,3.2078,3363.3,3363.0,4.7329]
[1765391019412,2.12591275,3363.2,3363.0,4.7329]
[1765391019618,2.12591275,3363.2,3363.1,3.5944]
[1765391019818,3.93541275,3363.5,3363.4,1.764]
[1765391020117,3.93541275,3363.5,3363.4,3.5944]
[1765391020316,5.83261275,3363.5,3363.4,1.764]
[1765391021719,2.12591275,3363.5,3363.4,3.5944]
[1765391022025,2.12591275,3363.7,3363.6,3.5944]
[1765391022423,0.00785769,3363.9,3363.6,3.5944]
[1765391022625,1.8095,3363.7,3363.6,3.5944]
[1765391022817,3.93755647,3363.7,3363.6,3.5944]
[1765391023918,5.83475647,3363.7,3363.6,1.764]
[1765391024325,3.7067,3363.7,3363.6,1.764]
[1765391024525,5.83536917,3363.7,3363.6,1.764]
[1765391024722,3.93816917,3363.7,3363.6,3.5944]
[1765391025427,2.12866917,3363.7,3363.6,3.5944]
[1765391025623,2.12866917,3363.8,3363.7,3.5944]
[1765391028829,3.94602686,3363.9,3363.8,3.5944]
[1765391030423,1.81735769,3363.9,3363.8,3.5944]
[1765391031022,0.00785769,3363.9,3363.8,3.5944]
[1765391031429,1.07185603,3363.9,3363.8,3.5944]
[1765391032332,0.00785769,3363.9,3363.8,3.5944]
[1765391032525,1.06932236,3363.9,3363.8,3.5944]
[1765391033031,1.06799172,3363.9,3363.8,3.5944]
[1765391034228,2.87749172,3363.9,3363.8,3.5944]
[1765391035130,4.77469172,3363.9,3363.8,1.764]
[1765391035326,4.77469172,3363.9,3363.8,3.5944]
[1765391035523,1.06799172,3363.9,3363.8,3.5944]
[1765391038435,2.87749172,3363.9,3363.8,3.5944]
[1765391039534,1.06799172,3363.9,3363.8,3.5944]
[1765391040637,5.82889357,3364.8,3364.7,3.4344]
[1765391040836,1.7527,3364.8,3364.7,3.4344]
[1765391041034,2.12866917,3364.9,3364.8,3.4344]
[1765391041334,2.12866917,3364.9,3364.5,0.9681]
[1765391041335,3.4401,3365.1,3365.0,4.4025]
[1765391041530,0.00262051,3365.1,3364.5,4.4025]
[1765391041726,44.24272051,3365.1,3364.5,0.97256017]
[1765391041927,44.24272051,3365.1,3365.0,1.7677]
[1765391042129,44.24272051,3365.1,3365.0,3.4344]
[1765391042931,3.44272051,3365.1,3365.0,1.7677]
[1765391043136,3.44272051,3365.1,3364.5,0.97256017]
[1765391044033,0.00262051,3365.1,3365.0,4.4025]
[1765391044337,3.44272051,3365.1,3365.0,1.7677]
[1765391044737,0.00262051,3365.1,3365.0,4.4025]
[1765391044930,1.75532051,3365.1,3365.0,4.4025]
[1765391046935,3.44272051,3365.1,3365.0,1.7677]
[1765391048948,1.75532051,3365.1,3365.0,4.525]
[1765391049344,0.00262051,3365.1,3365.0,4.525]
[1765391050639,3.49762051,3365.1,3365.0,4.525]
[1765391050846,0.00262051,3365.1,3365.0,4.525]
[1765391052750,0.99265193,3365.1,3365.0,4.525]
[1765391053345,0.00262051,3365.1,3365.0,4.525]
[1765391053741,0.99265193,3365.1,3365.0,4.525]
[1765391053945,0.00262051,3365.1,3365.0,4.525]
[1765391054344,0.99265193,3365.1,3365.0,4.525]
[1765391054745,0.00262051,3365.1,3365.0,4.525]
[1765391056049,0.99003142,3365.2,3365.1,3.6232]
[1765391056256,0.00446017,3365.4,3365.3,3.6232]
[1765391056452,0.74022,3366.5,3366.0,4.7138]
[1765391056453,0.98754377,3366.1,3366.0,4.7138]
[1765391057049,0.99016085,3366.1,3366.0,4.71616749]
[1765391057650,4.48516085,3366.1,3366.0,0.00236749]
[1765391057856,4.48516085,3366.1,3365.4,5.0637]
[1765391057857,3.495,3365.5,3365.4,5.0637]
[1765391058056,5.55504377,3365.5,3365.4,3.2078]
[1765391058858,5.55504377,3365.5,3365.4,3.21020244]
[1765391059053,4.48254377,3365.5,3365.4,5.06610244]
[1765391059254,4.48254377,3365.5,3365.4,6.83340244]
[1765391059851,4.48254377,3365.5,3365.4,5.06610244]
[1765391060059,5.51954377,3365.5,3365.4,3.21020244]
[1765391060554,4.5845,3365.0,3364.9,3.2078]
[1765391060748,2.07704377,3365.0,3364.5,7.80356017]
[1765391060949,0.98754377,3364.9,3364.5,7.80356017]
[1765391061149,3.495,3364.9,3364.8,3.6232]
[1765391061350,4.48238244,3364.9,3364.8,3.6232]
[1765391061552,4.48238244,3364.9,3364.8,3.62560119]
[1765391061751,4.48238244,3364.9,3364.8,1.85830119]
[1765391061947,4.48238244,3364.9,3364.8,0.00240119]
[1765391062147,6.07758186,3364.9,3364.8,0.00240119]
[1765391062760,4.48238244,3364.9,3364.8,0.00240119]
[1765391065362,6.61105161,3364.9,3364.8,0.00240119]
[1765391066060,3.495,3364.6,3364.5,0.00446017]
[1765391066260,4.48238244,3364.6,3364.5,0.00446017]
[1765391066862,4.48238244,3364.6,3364.5,0.00830398]
[1765391068366,6.75965161,3364.6,3364.5,0.00830398]
[1765391069661,4.63098244,3364.6,3364.5,0.00830398]
[1765391069857,3.11882199,3364.6,3364.5,4.42210398]
[1765391070063,6.36162199,3364.6,3364.5,4.42210398]
[1765391070871,6.36162199,3364.6,3364.5,3.45600398]
[1765391071164,4.23018244,3364.6,3364.5,3.45600398]
[1765391072263,4.23018244,3364.6,3364.5,4.42210398]
[1765391072768,4.23018244,3364.6,3364.5,3.45600398]
[1765391073270,3.2428,3364.2,3364.1,3.4477]
[1765391073471,4.23018244,3364.2,3364.1,3.4477]
[1765391074265,4.23018244,3364.2,3364.1,0.00335358]
[1765391076469,4.23018244,3364.2,3364.1,1.74535358]
[1765391076671,4.23018244,3364.2,3364.1,3.45105358]
[1765391076964,4.23018244,3364.2,3364.1,0.00335358]
[1765391078171,0.98738244,3364.2,3364.1,1.74535358]
[1765391078375,4.23018244,3364.2,3364.1,3.45105358]
[1765391078777,4.23018244,3364.2,3364.1,1.74535358]
[1765391078978,0.98738244,3364.2,3364.1,3.45105358]
[1765391079174,2.61358244,3364.2,3364.1,3.45105358]
[1765391079776,0.98738244,3364.2,3364.1,3.45105358]
[1765391080381,5.8263772,3364.2,3364.1,3.45105358]
[1765391081075,5.8263772,3364.2,3364.1,0.00335358]
[1765391081283,4.23018244,3364.2,3364.1,0.00335358]
[1765391081475,1.13600244,3364.2,3364.1,1.742]
[1765391081677,2.76220244,3364.2,3364.1,3.4477]
[1765391081881,4.37880244,3364.2,3364.1,3.4477]
[1765391082074,3.2428,3363.9,3363.8,3.4477]
[1765391082270,4.23018244,3363.9,3363.8,3.4477]
[1765391082475,2.61358244,3363.9,3363.8,3.44992273]
[1765391082681,0.98738244,3363.9,3363.8,3.44992273]
[1765391084279,2.61358244,3363.9,3363.8,3.44992273]
[1765391084477,0.98738244,3363.9,3363.8,3.44992273]
[1765391085478,2.61358244,3363.9,3363.8,3.44992273]
[1765391085986,0.98738244,3363.9,3363.8,3.44992273]
[1765391086875,2.61358244,3363.9,3363.8,3.44992273]
[1765391087081,4.2092393,3363.9,3363.8,3.44992273]
[1765391087384,2.61358244,3363.9,3363.8,3.44992273]
[1765391087785,4.23018244,3363.9,3363.8,1.74422273]
[1765391087981,4.23018244,3363.9,3363.8,0.00222273]
[1765391088890,4.23018244,3363.9,3363.8,1.74422273]
[1765391089286,4.23018244,3363.9,3363.8,0.00222273]
[1765391089587,4.23018244,3363.9,3363.8,3.44992273]
[1765391090392,0.98738244,3363.9,3363.8,6.65772273]
[1765391090591,2.61358244,3363.9,3363.8,6.65772273]
[1765391090791,4.23018244,3363.9,3363.8,3.44992273]
[1765391091182,2.61358244,3363.9,3363.8,3.44992273]
[1765391092288,4.74098192,3363.9,3363.8,3.44992273]
[1765391092891,0.98738244,3363.9,3363.8,3.44992273]
[1765391093094,3.11478192,3363.9,3363.8,3.44992273]
[1765391093290,6.35758192,3363.9,3363.8,0.00222273]
[1765391093495,6.35758192,3363.9,3363.8,3.44992273]
[1765391093991,6.35758192,3363.9,3363.8,1.74422273]
[1765391094190,4.23018244,3363.9,3363.8,1.74422273]
[1765391094393,4.23018244,3363.9,3363.8,3.44992273]
[1765391095093,4.23018244,3363.9,3363.8,1.74422273]
[1765391095496,0.98738244,3363.9,3363.8,3.44992273]
[1765391096495,3.12319887,3363.9,3363.8,6.65772273]
[1765391096691,2.61358244,3363.9,3363.8,3.44992273]
[1765391096891,4.74939887,3363.9,3363.8,3.44992273]
[1765391097091,3.12319887,3363.9,3363.8,3.44992273]
[1765391097493,0.98738244,3363.9,3363.8,3.44992273]
[1765391097692,2.61358244,3363.9,3363.8,3.44992273]
[1765391098196,4.74939887,3363.9,3363.8,3.44992273]
[1765391099301,3.12319887,3363.9,3363.8,3.44992273]
[1765391099497,4.59849887,3363.9,3363.8,3.44992273]
[1765391099694,3.93808244,3363.9,3363.5,0.00446017]
[1765391099896,3.93808244,3363.9,3362.5,0.9661]
[1765391099897,2.9507,3363.2,3362.7,3.2078]
[1765391100095,5.08624815,3363.2,3363.1,1.5592]
[1765391100411,6.15287699,3363.2,3363.1,2.9888]
[1765391100699,2.65699677,3363.6,3363.5,2.9888]
[1765391100890,2.9507,3363.6,3363.5,1.5592]
[1765391101090,6.16138235,3363.6,3363.5,1.5592]
[1765391101301,2.9507,3363.2,3363.1,2.99175192]
[1765391101500,3.07728528,3363.3,3363.2,2.9888]
[1765391101794,0.935,3363.5,3363.1,0.00295192]
[1765391101795,1.55381855,3363.4,3363.3,2.9888]
[1765391102001,0.00288235,3363.6,3363.5,2.9888]
[1765391102503,2.95358235,3363.6,3363.5,2.9888]
[1765391102695,1.47818235,3363.6,3363.5,2.9888]
[1765391103197,0.00288235,3363.6,3363.5,2.9888]
[1765391103701,2.95358235,3363.6,3363.5,2.9888]
[1765391104095,0.00288235,3363.6,3363.5,3.8744]
[1765391104603,0.00288235,3363.6,3363.5,2.9888]
[1765391105404,0.00288235,3363.6,3363.5,3.8556]
[1765391106091,3.2078,3364.4,3364.3,2.9888]
[1765391106290,3.52763469,3364.4,3364.3,2.9888]
[1765391106795,0.00446017,3364.5,3364.4,2.9888]
[1765391107201,0.00686307,3364.5,3364.4,2.9888]
[1765391108898,4.68996307,3364.5,3364.4,2.9888]
[1765391109104,1.4753,3364.0,3363.9,2.9888]
[1765391109307,3.8857,3364.0,3363.9,2.9888]
[1765391109899,2.4103,3364.0,3363.9,2.9888]
[1765391110098,3.8857,3364.0,3363.5,3.2078]
[1765391110492,1.4753,3363.6,3363.5,6.1966]
[1765391110697,3.8857,3363.5,3363.4,1.5592]
[1765391110892,3.2078,3363.6,3363.5,2.9888]
[1765391111091,6.1585,3363.6,3363.5,1.5592]
[1765391111403,6.1585,3363.6,3363.1,3.21075192]
[1765391111404,3.8857,3363.5,3363.4,1.5592]
[1765391112104,1.4753,3363.2,3363.1,6.19955192]
[1765391112308,1.4753,3363.2,3362.7,3.2078]
[1765391112309,2.9507,3362.8,3362.7,3.2078]
[1765391112609,6.1585,3362.8,3362.0,3.2078]
[1765391112803,0.95477188,3362.7,3362.0,3.2078]
[1765391113000,4.5637,3362.5,3362.4,1.7776]
[1765391113308,5.51847188,3362.5,3362.4,0.00261926]
[1765391113498,5.51847188,3362.5,3362.4,1.78021926]
[1765391113802,5.51847188,3362.5,3362.4,0.00261926]
[1765391114903,0.95477188,3362.5,3362.4,3.53881926]
[1765391115301,0.00446017,3362.8,3362.7,3.5362]
[1765391115500,0.95716958,3362.8,3362.7,3.5362]
[1765391116205,2.62826958,3362.8,3362.7,3.5362]
[1765391116706,0.95716958,3362.8,3362.7,3.5362]
[1765391118909,4.44566958,3362.8,3362.7,3.5362]
[1765391119116,0.95716958,3362.8,3362.7,3.5362]
[1765391119703,0.00446017,3362.8,3362.7,3.5362]
[1765391120509,0.95716958,3362.8,3362.7,3.5362]
[1765391121305,0.00446017,3362.8,3362.7,3.5362]
[1765391124110,1.6711,3362.5,3362.4,3.53881926]
[1765391124305,2.7463,3362.5,3362.4,3.53881926]
[1765391124719,4.5637,3362.5,3362.4,1.78021926]
[1765391124903,5.51726834,3362.5,3362.4,1.78021926]
[1765391126812,2.02876834,3362.5,3362.4,3.53881926]
[1765391127214,3.69986834,3362.5,3362.4,3.53881926]
[1765391127507,0.95356834,3362.5,3362.4,3.53881926]
[1765391127710,3.4885,3362.7,3362.6,3.5362]
[1765391127906,4.4417649,3362.7,3362.6,3.5362]
[1765391129306,4.4417649,3362.7,3362.6,1.7776]
[1765391129716,4.4417649,3362.7,3362.6,3.4972]
[1765391130007,0.9532649,3362.7,3362.6,3.4972]
[1765391130206,0.00446017,3362.8,3362.7,3.3524]
[1765391130604,0.00446017,3362.8,3362.7,3.50109]
[1765391130809,4.8559,3363.8,3363.7,3.3524]
[1765391131011,5.80953423,3363.8,3363.7,3.3524]
[1765391131211,0.95363423,3363.8,3363.7,3.3524]
[1765391131406,6.4816,3364.2,3364.1,3.3524]
[1765391131714,7.43535975,3364.2,3364.1,3.3524]
[1765391132016,4.22755975,3364.2,3364.1,3.3524]
[1765391132219,2.60185975,3364.2,3364.1,3.3524]
[1765391132410,1.6481,3363.9,3363.8,6.56466017]
[1765391132617,3.2738,3363.9,3363.8,4.84506017]
[1765391132812,4.22751439,3363.9,3363.8,0.00446017]
[1765391133913,4.22751439,3363.9,3363.8,1.63726017]
[1765391136014,4.22751439,3363.9,3363.8,3.35686017]
[1765391136218,2.60181439,3363.9,3363.8,3.35686017]
[1765391136418,0.95371439,3363.9,3363.8,3.35686017]
[1765391136812,3.2078,3364.2,3364.1,3.3524]
[1765391137012,3.2078,3364.2,3364.1,6.5602]
[1765391137013,0.95394843,3364.2,3364.1,6.5602]
[1765391137212,4.26386307,3364.5,3364.4,1.6328]
[1765391137413,5.21799957,3364.5,3364.4,1.6328]
[1765391137814,5.21799957,3364.5,3363.8,0.15310017]
[1765391138015,3.2738,3363.9,3363.8,0.00446017]
[1765391138216,4.2281828,3363.9,3363.8,0.00446017]
[1765391140218,0.9543828,3363.9,3363.8,3.35686017]
[1765391140420,6.4816,3364.2,3364.1,3.3524]
[1765391140615,0.95444125,3364.2,3364.1,3.3524]
[1765391140819,0.99006307,3364.5,3364.1,3.3524]
[1765391140820,0.00686307,3364.5,3364.4,3.3524]
[1765391141019,0.00686307,3364.5,3364.4,6.5602]
[1765391141227,1.65496307,3364.5,3364.4,3.3524]
[1765391141526,2.63816307,3364.5,3364.4,3.3524]
[1765391143122,0.00686307,3364.5,3364.4,3.3524]
[1765391143328,1.65496307,3364.5,3364.4,3.3524]
[1765391143523,4.26386307,3364.5,3364.4,3.3524]
[1765391143724,2.63816307,3364.5,3364.4,3.3524]
[1765391143927,4.26386307,3364.5,3363.9,3.2078]
[1765391144227,4.257,3364.0,3363.9,4.8406]
[1765391144428,4.257,3364.0,3363.9,3.2078]
[1765391144629,3.2738,3363.9,3363.8,0.00446017]
[1765391144831,0.9832,3364.0,3363.9,1.6328]
[1765391145022,2.6313,3364.0,3363.9,3.3524]
[1765391145224,1.13867307,3364.5,3363.9,3.3524]
[1765391145225,0.99006307,3364.5,3363.9,3.3524]
[1765391145430,3.2078,3364.4,3363.9,3.3524]
[1765391145826,1.6481,3364.0,3363.9,3.3524]
[1765391146031,4.257,3364.0,3363.9,1.6328]
[1765391146737,3.2738,3363.9,3363.8,0.00446017]
[1765391146937,3.2738,3363.9,3363.8,1.63726017]
[1765391147229,3.2078,3364.4,3363.9,3.3524]
[1765391147434,2.6313,3364.0,3363.9,3.3524]
[1765391147630,3.2738,3363.9,3363.8,1.63726017]
[1765391148835,1.6481,3363.9,3363.8,3.35686017]
[1765391149338,3.2738,3363.9,3363.8,3.35686017]
[1765391149537,3.2738,3363.9,3363.8,1.63726017]
[1765391149837,6.4816,3364.4,3364.3,1.6328]
[1765391150339,6.4816,3364.4,3363.8,0.00446017]
[1765391150840,0.00686307,3364.5,3364.4,3.3524]
[1765391151032,0.00686307,3364.5,3364.4,6.5602]
[1765391152433,4.257,3365.5,3365.4,1.6328]
[1765391152936,5.22440211,3365.5,3365.4,1.6328]